bitfinex-derivatives/quotes_SOLF0:USTF0_20250428
["timestamp","ask_amount","ask_price","bid_price","bid_amount"]
[1745800984544,63.11613441,147.97,147.93,4.66439475]
[1745800984759,63.11613441,147.97,147.94,4.66439475]
[1745800985248,63.11613441,147.97,147.93,4.66439475]
[1745800985450,63.11613441,147.97,147.92,4.66439475]
[1745800985645,70.38946674,147.97,147.91,1.9933]
[1745800986050,70.38946674,147.97,147.93,6.7577]
[1745800986249,63.11613441,147.97,147.93,6.7577]
[1745800986452,7.27333233,147.99,147.93,6.7577]
[1745800987251,6.756,147.97,147.93,6.7577]
[1745800987950,6.7556,147.98,147.93,6.7577]
[1745800988151,6.7556,147.98,147.94,6.7571]
[1745800988950,7.27333233,147.95,147.87,29.92]
[1745800989144,7.27333233,147.95,147.87,32.0059]
[1745800989551,6.7576,147.94,147.87,32.0059]
[1745800989849,7.27333233,147.95,147.87,32.0059]
[1745800990352,7.27333233,147.95,147.9,6.7588]
[1745800990551,7.27333233,147.95,147.87,32.0059]
[1745800990951,6.7574,147.94,147.89,6.7596]
[1745800991148,7.27333233,147.93,147.87,2.0859]
[1745800991450,7.27333233,147.91,147.84,29.82]
[1745800991852,6.7601,147.88,147.84,29.82]
[1745800992152,6.7601,147.88,147.81,37.09333233]
[1745800992352,14.03303233,147.89,147.84,6.7615]
[1745800993453,6.7601,147.88,147.84,6.7615]
[1745800993952,7.27333233,147.89,147.85,6.7613]
[1745800995253,7.27333233,147.89,147.84,6.7618]
[1745800995453,7.27333233,147.89,147.8,31.9442]
[1745800995649,7.27333233,147.89,147.83,6.762]
[1745800995950,37.09333233,147.89,147.83,6.762]
[1745800996649,6.7602,147.88,147.83,6.762]
[1745800997953,6.7602,147.88,147.84,6.7618]
[1745801003259,6.7605,147.87,147.83,6.7622]
[1745801005861,6.7605,147.87,147.8,31.9442]
[1745801005862,7.27333233,147.87,147.8,31.9442]
[1745801006161,7.27333233,147.85,147.75,7.27333233]
[1745801006463,7.27333233,147.83,147.75,7.27333233]
[1745801006759,6.7631,147.82,147.78,6.7643]
[1745801009460,7.27333233,147.83,147.78,6.7643]
[1745801009763,6.7633,147.81,147.78,6.7643]
[1745801010065,6.7633,147.81,147.75,7.27333233]
[1745801010066,6.7633,147.81,147.76,6.7652]
[1745801010261,7.27333233,147.83,147.74,29.82]
[1745801010867,7.27333233,147.81,147.74,29.82]
[1745801011461,6.764,147.8,147.76,6.7654]
[1745801011766,7.27333233,147.81,147.74,29.82]
[1745801011966,7.27333233,147.79,147.74,29.82]
[1745801012467,14.03773233,147.79,147.75,6.7658]
[1745801012670,7.27333233,147.79,147.73,2.0593]
[1745801012971,7.27333233,147.77,147.73,2.0593]
[1745801013467,6.7658,147.76,147.73,2.0593]
[1745801014267,7.27333233,147.79,147.73,2.0593]
[1745801015067,6.7649,147.78,147.74,6.7661]
[1745801015267,7.27333233,147.79,147.73,2.0593]
[1745801015566,6.7648,147.78,147.74,6.7662]
[1745801015866,1.9901,147.8,147.73,2.0593]
[1745801016160,8.7541,147.8,147.75,6.7656]
[1745801016368,1.9901,147.8,147.75,6.7656]
[1745801016567,7.27333233,147.79,147.75,6.7656]
[1745801017067,14.03773233,147.79,147.75,6.7656]
[1745801017267,7.27333233,147.79,147.76,6.7655]
[1745801017469,4.66671172,147.78,147.76,6.7655]
[1745801017768,4.66671172,147.78,147.75,6.7659]
[1745801017965,4.66671172,147.77,147.73,2.0593]
[1745801018268,4.66671172,147.76,147.73,2.0593]
[1745801018970,4.66671172,147.76,147.73,8.8261]
[1745801019569,11.43221172,147.76,147.73,8.8261]
[1745801020268,4.66671172,147.76,147.73,8.8261]
[1745801021771,6.7652,147.77,147.73,8.8261]
[1745801022070,11.43191172,147.77,147.73,8.8261]
[1745801023471,4.66671172,147.75,147.73,8.8261]
[1745801025569,4.66671172,147.75,147.74,6.7664]
[1745801025773,4.66671172,147.76,147.74,6.7664]
[1745801028474,6.7652,147.77,147.74,6.7664]
[1745801028674,4.66671172,147.76,147.74,6.7664]
[1745801029975,4.66671172,147.77,147.73,6.72601172]
[1745801030175,4.66671172,147.78,147.73,6.72601172]
[1745801030876,4.66671172,147.77,147.73,6.72601172]
[1745801031077,4.66671172,147.77,147.74,6.7661]
[1745801031272,4.66671172,147.77,147.73,2.0593]
[1745801031781,4.66671172,147.77,147.75,6.7657]
[1745801032482,4.66671172,147.76,147.74,6.7663]
[1745801032675,4.66671172,147.75,147.74,6.7663]
[1745801032977,4.66671172,147.76,147.74,6.7663]
[1745801033774,4.66671172,147.76,147.67,0.2832]
[1745801033982,4.66671172,147.7,147.67,0.2832]
[1745801034480,29.76,147.78,147.69,4.66671172]
[1745801034675,4.66671172,147.77,147.72,4.66671172]
[1745801034983,11.43211172,147.77,147.73,6.7666]
[1745801037982,11.43211172,147.77,147.74,6.7663]
[1745801039484,4.66671172,147.75,147.7,2.0589]
[1745801039683,4.66671172,147.72,147.7,2.0589]
[1745801040084,4.66671172,147.72,147.7,8.827]
[1745801040585,4.66671172,147.71,147.67,0.2832]
[1745801042284,4.66671172,147.71,147.69,6.7687]
[1745801042484,2.0302,147.8,147.7,34.42671172]
[1745801042779,4.66671172,147.79,147.74,4.66671172]
[1745801042987,4.66671172,147.79,147.76,6.7652]
[1745801043687,4.66671172,147.78,147.73,4.66671172]
[1745801043882,4.66671172,147.78,147.72,4.66671172]
[1745801044389,4.66671172,147.78,147.73,6.7669]
[1745801044988,6.7651,147.77,147.73,6.7669]
[1745801045784,4.66671172,147.75,147.72,6.7672]
[1745801045978,4.66671172,147.74,147.71,1.9765]
[1745801046385,4.66671172,147.73,147.71,1.9765]
[1745801046594,4.66671172,147.72,147.67,34.70991172]
[1745801046887,4.66671172,147.71,147.67,30.0432]
[1745801047086,4.66671172,147.71,147.68,6.769]
[1745801047988,4.66671172,147.7,147.68,6.769]
[1745801048393,4.66671172,147.73,147.69,4.66671172]
[1745801048689,4.66671172,147.73,147.68,4.66671172]
[1745801049284,4.66671172,147.71,147.67,30.0432]
[1745801049484,7.29910462,147.73,147.67,30.0432]
[1745801049787,7.29910462,147.73,147.67,0.2832]
[1745801049993,7.29910462,147.73,147.68,6.7691]
[1745801049994,6.7681,147.71,147.68,6.7691]
[1745801050293,6.7681,147.71,147.67,0.2832]
[1745801050678,7.29910462,147.71,147.67,0.2832]
[1745801051083,37.05910462,147.71,147.67,0.2832]
[1745801051283,6.7692,147.68,147.67,0.2832]
[1745801051479,6.7692,147.68,147.63,29.76]
[1745801051790,6.7692,147.68,147.64,6.7707]
[1745801051991,14.06800462,147.69,147.64,6.7707]
[1745801052591,37.05910462,147.71,147.63,37.05910462]
[1745801052790,29.76,147.71,147.63,37.05910462]
[1745801052987,7.29910462,147.73,147.63,37.05910462]
[1745801053289,7.29910462,147.73,147.65,7.29910462]
[1745801053891,6.7675,147.72,147.65,7.29910462]
[1745801054391,6.7675,147.72,147.68,6.7689]
[1745801055085,7.29910462,147.73,147.68,6.7689]
[1745801055290,6.7678,147.71,147.68,6.7689]
[1745801055692,6.7675,147.72,147.68,6.7689]
[1745801056491,6.7675,147.72,147.69,6.7687]
[1745801056892,14.06610462,147.73,147.69,6.7687]
[1745801057089,7.29910462,147.73,147.68,6.769]
[1745801058097,6.7675,147.72,147.69,6.7687]
[1745801060295,6.7675,147.72,147.68,6.769]
[1745801060494,6.7679,147.71,147.63,37.05910462]
[1745801060990,6.7675,147.72,147.68,6.7691]
[1745801061194,6.7675,147.72,147.63,37.05910462]
[1745801061494,6.7675,147.72,147.68,6.7689]
[1745801063803,7.29910462,147.71,147.63,37.05910462]
[1745801064497,7.29910462,147.71,147.67,6.7695]
[1745801065609,14.06720462,147.71,147.67,6.7695]
[1745801070807,6.7674,147.72,147.63,37.05910462]
[1745801071013,7.29910462,147.84,147.69,7.29910462]
[1745801071306,7.29910462,147.84,147.74,6.7661]
[1745801071307,6.7649,147.78,147.74,6.7661]
[1745801071512,4.66777752,147.76,147.71,4.66777752]
[1745801071714,4.66777752,147.74,147.7,10.87547752]
[1745801071917,4.66777752,147.74,147.7,6.2077]
[1745801073114,4.66777752,147.73,147.7,1.9674]
[1745801073315,29.68,147.79,147.63,361.0]
[1745801073316,4.66777752,147.71,147.67,4.66777752]
[1745801074015,4.66777752,147.72,147.67,4.66777752]
[1745801074312,4.66777752,147.72,147.7,6.7682]
[1745801075517,6.7666,147.74,147.7,6.7682]
[1745801075815,43.74288381,147.75,147.71,6.7677]
[1745801076015,36.97678381,147.75,147.66,36.97678381]
[1745801076219,7.29678381,147.71,147.66,29.68]
[1745801077322,6.7683,147.7,147.66,29.68]
[1745801077620,6.7683,147.7,147.64,6.4288]
[1745801078320,6.7683,147.7,147.66,6.7698]
[1745801079322,7.29678381,147.69,147.65,6.7704]
[1745801079520,7.29678381,147.69,147.64,2.1077]
[1745801079917,14.06588381,147.69,147.65,6.7704]
[1745801081023,14.06588381,147.69,147.66,6.7699]
[1745801086425,7.29678381,147.69,147.67,6.7695]
[1745801086627,6.7683,147.7,147.67,6.7695]
[1745801086827,36.97678381,147.71,147.65,0.2933]
[1745801087026,43.74478381,147.71,147.67,6.7692]
[1745801087225,7.29678381,147.73,147.65,0.2933]
[1745801087626,14.06388381,147.73,147.65,0.2933]
[1745801087826,7.29678381,147.73,147.65,0.2933]
[1745801088625,6.7674,147.72,147.68,6.7687]
[1745801089731,6.7674,147.72,147.69,6.7687]
[1745801090930,14.06378381,147.73,147.69,6.7687]
[1745801091127,7.29678381,147.75,147.68,7.29678381]
[1745801091331,516.92,147.77,147.68,7.29678381]
[1745801091531,6.7658,147.76,147.68,7.29678381]
[1745801091830,524.21678381,147.77,147.68,7.29678381]
[1745801092131,6.7663,147.75,147.71,6.7677]
[1745801093227,7.29678381,147.75,147.7,6.7681]
[1745801093530,7.29678381,147.73,147.67,29.58]
[1745801094131,6.7675,147.72,147.68,6.7689]
[1745801097436,6.7675,147.72,147.69,6.7686]
[1745801099235,14.06378381,147.73,147.7,6.7682]
[1745801099434,7.29678381,147.73,147.7,6.7682]
[1745801100236,36.87678381,147.77,147.68,7.29678381]
[1745801100633,7.29678381,147.75,147.67,29.58]
[1745801100832,6.7671,147.73,147.7,6.7681]
[1745801101636,4.67060669,147.72,147.7,6.7681]
[1745801101837,11.43800669,147.72,147.69,6.7686]
[1745801102338,4.67060669,147.72,147.7,6.768]
[1745801102537,4.67060669,147.75,147.69,4.67060669]
[1745801102733,4.67060669,147.77,147.72,4.67060669]
[1745801102939,4.67060669,147.79,147.75,4.67060669]
[1745801103840,4.67060669,147.79,147.76,6.7654]
[1745801104043,41.01450669,147.8,147.75,4.67060669]
[1745801104339,4.67060669,147.8,147.76,4.67060669]
[1745801104542,4.67060669,147.8,147.77,6.765]
[1745801104739,4.67060669,147.8,147.76,4.67060669]
[1745801105041,4.67060669,147.81,147.77,4.67060669]
[1745801105338,4.67060669,147.8,147.76,4.67060669]
[1745801105540,6.763,147.82,147.78,6.7643]
[1745801105740,6.763,147.82,147.75,29.58]
[1745801105940,36.86815788,147.83,147.75,29.58]
[1745801106141,36.86815788,147.83,147.76,2.0952]
[1745801106341,36.86815788,147.83,147.79,6.7641]
[1745801107239,43.63055788,147.83,147.79,6.7641]
[1745801108237,36.86815788,147.83,147.76,2.0952]
[1745801108537,7.28815788,147.79,147.71,33.6681]
[1745801108837,7.28815788,147.77,147.71,29.58]
[1745801109137,7.28815788,147.75,147.72,0.25793]
[1745801110232,14.05425788,147.75,147.72,0.25793]
[1745801110740,7.28815788,147.73,147.62,487.16]
[1745801110942,7.28815788,147.71,147.63,2.0875]
[1745801111347,14.05595788,147.71,147.63,2.0875]
[1745801112042,14.05595788,147.71,147.66,6.7698]
[1745801112439,14.05595788,147.71,147.63,2.0875]
[1745801113643,14.05595788,147.71,147.67,6.7696]
[1745801113942,7.28815788,147.71,147.63,2.0875]
[1745801114143,7.28815788,147.73,147.64,7.28815788]
[1745801114539,43.63425788,147.75,147.66,7.28815788]
[1745801114840,43.63425788,147.75,147.67,29.48]
[1745801115342,43.63425788,147.75,147.7,6.7679]
[1745801115545,36.86815788,147.75,147.67,29.48]
[1745801116543,14.05545788,147.73,147.69,6.7684]
[1745801118448,7.28815788,147.73,147.7,6.7682]
[1745801123651,36.86815788,147.75,147.67,29.48]
[1745801123851,29.58,147.75,147.68,9.38895788]
[1745801124049,7.28815788,147.77,147.68,11.52045788]
[1745801124248,7.28815788,147.75,147.69,2.1005]
[1745801124442,7.28815788,147.73,147.69,2.1005]
[1745801124647,7.28815788,147.73,147.67,29.48]
[1745801124847,7.28815788,147.73,147.68,6.7689]
[1745801125146,7.28815788,147.71,147.64,29.5]
[1745801126048,7.28815788,147.71,147.63,13.45875788]
[1745801126252,7.28815788,147.69,147.63,2.0493]
[1745801126549,6.7695,147.68,147.64,6.7707]
[1745801127150,7.28815788,147.67,147.63,2.0493]
[1745801127356,1.9715,147.69,147.59,29.5]
[1745801127552,7.28815788,147.67,147.59,38.91315788]
[1745801127952,11.31775788,147.69,147.59,38.91315788]
[1745801129254,18.08675788,147.69,147.65,6.7705]
[1745801129656,11.31775788,147.69,147.65,6.7705]
[1745801130158,18.08675788,147.69,147.65,6.7705]
[1745801130555,11.31775788,147.69,147.65,6.7705]
[1745801130854,11.31775788,147.69,147.64,6.7709]
[1745801132260,6.7697,147.67,147.64,6.7709]
[1745801132459,7.28815788,147.67,147.62,6.7716]
[1745801133958,7.28815788,147.67,147.61,6.7724]
[1745801134757,6.7708,147.65,147.61,6.7724]
[1745801135060,7.28815788,147.65,147.6,6.7727]
[1745801135254,6.7713,147.64,147.6,6.7727]
[1745801136262,14.05875788,147.65,147.59,31.625]
[1745801136959,7.28815788,147.65,147.59,31.625]
[1745801137262,7.28815788,147.65,147.59,2.125]
[1745801137458,7.28815788,147.63,147.59,2.125]
[1745801137658,7.28815788,147.61,147.53,31.5263]
[1745801137855,7.28815788,147.61,147.53,33.5668]
[1745801138059,6.7736,147.59,147.55,6.7748]
[1745801138267,7.28815788,147.61,147.53,33.5668]
[1745801138764,14.06065788,147.61,147.53,33.5668]
[1745801138964,7.28815788,147.61,147.53,33.5668]
[1745801139266,6.7729,147.6,147.56,6.7744]
[1745801140066,6.7733,147.59,147.55,6.775]
[1745801140266,7.28815788,147.59,147.53,33.5668]
[1745801140561,7.28815788,147.61,147.53,33.5668]
[1745801140766,7.28815788,147.61,147.57,6.7739]
[1745801140965,7.28815788,147.59,147.53,33.5668]
[1745801141668,14.06165788,147.59,147.53,33.5668]
[1745801141868,7.28815788,147.59,147.53,33.5668]
[1745801142266,14.06155788,147.59,147.55,6.7748]
[1745801142660,14.06155788,147.59,147.53,33.5668]
[1745801142865,7.28815788,147.59,147.56,6.7744]
[1745801143463,14.06175788,147.59,147.55,6.775]
[1745801143768,7.28815788,147.59,147.53,31.5405]
[1745801143971,7.28815788,147.59,147.54,6.7752]
[1745801144169,7.28815788,147.57,147.53,2.0405]
[1745801144470,6.7748,147.56,147.53,2.0405]
[1745801144770,6.7748,147.56,147.52,6.7764]
[1745801144972,7.28815788,147.57,147.5,29.42]
[1745801145270,7.28815788,147.57,147.53,6.7757]
[1745801145470,7.28815788,147.57,147.5,29.42]
[1745801145670,6.7751,147.56,147.52,6.7762]
[1745801145865,6.7751,147.56,147.5,29.42]
[1745801147969,6.7752,147.55,147.5,29.42]
[1745801148163,7.28815788,147.57,147.5,29.42]
[1745801148364,6.775,147.56,147.52,6.7762]
[1745801148971,6.7752,147.55,147.52,6.7762]
[1745801149173,7.28815788,147.55,147.49,2.1137]
[1745801149373,7.28815788,147.53,147.49,2.1137]
[1745801150473,14.06455788,147.53,147.49,8.8914]
[1745801151771,6.7765,147.52,147.49,2.1137]
[1745801151969,6.7765,147.52,147.46,29.44]
[1745801152171,6.7777,147.5,147.42,29.44]
[1745801152374,7.28815788,147.49,147.42,29.44]
[1745801152578,7.28815788,147.47,147.41,2.1225]
[1745801152771,7.28815788,147.47,147.43,6.7805]
[1745801153076,7.28815788,147.47,147.41,2.1225]
[1745801153277,29.44,147.48,147.41,2.1225]
[1745801153473,29.44,147.48,147.44,6.7798]
[1745801153775,7.28815788,147.47,147.41,2.1225]
[1745801153976,7.28815788,147.47,147.44,6.7801]
[1745801155180,14.06695788,147.47,147.43,6.7805]
[1745801155373,7.28815788,147.45,147.41,2.1225]
[1745801155577,7.28815788,147.47,147.41,2.1225]
[1745801155971,14.06735788,147.47,147.43,6.7806]
[1745801156174,7.28815788,147.47,147.41,2.1225]
[1745801156980,29.44,147.51,147.43,7.28815788]
[1745801157178,36.72815788,147.52,147.43,7.28815788]
[1745801157479,6.7773,147.51,147.46,6.7789]
[1745801157676,36.72815788,147.52,147.46,6.7789]
[1745801158078,7.28815788,147.52,147.46,6.7789]
[1745801158279,6.7775,147.5,147.46,6.7789]
[1745801159488,36.2171,147.51,147.47,6.7788]
[1745801159985,29.44,147.51,147.43,7.28815788]
[1745801160183,6.7775,147.5,147.46,6.779]
[1745801160485,29.44,147.51,147.43,36.74815788]
[1745801160689,2.1481,147.55,147.47,7.28815788]
[1745801160883,31.6081,147.55,147.48,1.9837]
[1745801161087,7.28815788,147.52,147.48,1.9837]
[1745801161280,29.46,147.51,147.43,29.46]
[1745801161482,7.28815788,147.48,147.4,31.5737]
[1745801161784,7.28815788,147.49,147.41,7.28815788]
[1745801162089,6.7785,147.48,147.44,6.78]
[1745801163990,6.7785,147.48,147.45,6.7797]
[1745801164693,14.06615788,147.49,147.4,31.5737]
[1745801164990,7.28815788,147.49,147.4,31.5737]
[1745801165591,6.7787,147.48,147.4,31.5737]
[1745801165890,6.7787,147.48,147.44,6.7801]
[1745801166092,36.74815788,147.47,147.4,2.1137]
[1745801166290,6.7798,147.45,147.4,2.1137]
[1745801166490,6.7798,147.45,147.41,6.7812]
[1745801169291,6.7798,147.45,147.42,6.781]
[1745801169493,29.46,147.46,147.4,2.1137]
[1745801169689,7.28815788,147.51,147.43,7.28815788]
[1745801169993,43.52435788,147.53,147.45,7.28815788]
[1745801170389,43.52435788,147.53,147.49,6.7776]
[1745801170590,6.7766,147.52,147.49,6.7776]
[1745801170993,29.46,147.53,147.5,6.7774]
[1745801171390,29.46,147.53,147.47,9.31505788]
[1745801171588,29.46,147.56,147.49,7.28815788]
[1745801172194,6.7752,147.55,147.52,6.7765]
[1745801172393,29.46,147.56,147.52,6.7765]
[1745801172694,36.235,147.56,147.52,6.7765]
[1745801173692,29.46,147.56,147.52,6.7765]
[1745801173890,7.28815788,147.55,147.51,6.7768]
[1745801174095,7.28815788,147.53,147.47,2.0269]
[1745801174295,14.06435788,147.53,147.49,6.7777]
[1745801177095,6.7766,147.52,147.49,6.7777]
[1745801177298,6.7766,147.52,147.48,6.7782]
[1745801177596,6.7766,147.52,147.47,2.0269]
[1745801177785,29.36,147.52,147.47,2.0269]
[1745801177991,7.28815788,147.51,147.47,2.0269]
[1745801178293,14.06545788,147.51,147.47,8.8057]
[1745801178595,7.28815788,147.51,147.47,2.0269]
[1745801178796,7.28815788,147.51,147.43,7.28815788]
[1745801178995,6.7782,147.49,147.45,6.7796]
[1745801179196,7.28815788,147.49,147.43,2.0746]
[1745801179695,7.28815788,147.47,147.43,2.0746]
[1745801180397,6.7796,147.46,147.43,2.0746]
[1745801181398,14.06715788,147.47,147.43,8.8552]
[1745801183596,6.7793,147.46,147.43,8.8552]
[1745801184400,6.7799,147.45,147.42,6.7811]
[1745801184702,6.7799,147.45,147.39,40.71145788]
[1745801184996,7.28815788,147.47,147.39,40.71145788]
[1745801185196,6.7795,147.46,147.42,6.7811]
[1745801186403,6.7798,147.45,147.41,6.7814]
[1745801186705,6.7798,147.45,147.39,40.71145788]
[1745801187401,6.7798,147.45,147.41,6.7812]
[1745801187704,6.7798,147.45,147.39,40.71145788]
[1745801188007,6.7798,147.45,147.41,6.7812]
[1745801188216,6.7794,147.46,147.39,40.71145788]
[1745801188506,29.36,147.48,147.42,6.7808]
[1745801189001,7.28815788,147.47,147.39,33.4233]
[1745801189609,6.7801,147.45,147.41,6.7815]
[1745801190207,6.7803,147.44,147.41,6.7815]
[1745801190406,7.28815788,147.47,147.39,33.4233]
[1745801191110,6.78,147.45,147.41,6.7813]
[1745801192810,6.7803,147.44,147.4,6.7819]
[1745801193810,6.7803,147.44,147.41,6.7814]
[1745801194110,6.7799,147.45,147.39,4.0633]
[1745801194510,6.7802,147.44,147.41,6.7813]
[1745801196709,6.7802,147.44,147.4,6.7819]
[1745801197210,6.7802,147.44,147.41,6.7816]
[1745801198511,7.28815788,147.47,147.4,6.7818]
[1745801198711,7.28815788,147.43,147.37,1.9432]
[1745801199210,7.28815788,147.43,147.37,8.7265]
[1745801199612,7.28815788,147.43,147.37,1.9432]
[1745801200412,6.7824,147.4,147.37,1.9432]
[1745801202014,6.7828,147.39,147.37,1.9432]
[1745801202309,7.28815788,147.41,147.35,6.7842]
[1745801202711,6.7832,147.38,147.35,6.7842]
[1745801203111,6.7833,147.38,147.34,8.7195]
[1745801203310,29.38,147.4,147.34,8.7195]
[1745801203514,7.28815788,147.39,147.34,1.9348]
[1745801203813,7.28815788,147.37,147.3,4.0867]
[1745801204112,7.28815788,147.37,147.31,6.7861]
[1745801204514,6.7846,147.35,147.31,6.7861]
[1745801205211,6.784,147.36,147.31,6.7861]
[1745801206014,6.784,147.36,147.32,6.7857]
[1745801206209,14.07175788,147.37,147.32,6.7857]
[1745801206411,7.28815788,147.37,147.3,4.0867]
[1745801207114,6.784,147.36,147.32,6.7854]
[1745801207317,29.38,147.4,147.31,7.28815788]
[1745801208415,6.7827,147.39,147.31,7.28815788]
[1745801208713,29.38,147.4,147.31,7.28815788]
[1745801208912,7.28815788,147.39,147.31,7.28815788]
[1745801209111,6.7833,147.38,147.34,6.7845]
[1745801209311,7.28815788,147.39,147.34,6.7845]
[1745801209512,7.28815788,147.37,147.3,4.0867]
[1745801209814,6.7842,147.36,147.3,4.0867]
[1745801210316,6.7842,147.36,147.32,6.7854]
[1745801211214,6.7844,147.35,147.32,6.7854]
[1745801211810,6.7844,147.35,147.31,6.7862]
[1745801212110,40.70145788,147.39,147.3,4.0867]
[1745801212309,7.28815788,147.42,147.3,4.0867]
[1745801212310,7.28815788,147.41,147.33,7.28815788]
[1745801212512,29.32,147.42,147.33,7.28815788]
[1745801212913,7.28815788,147.41,147.35,6.7842]
[1745801213113,6.7827,147.39,147.35,6.7842]
[1745801213315,6.7827,147.39,147.33,7.28815788]
[1745801213611,6.7831,147.38,147.34,6.7847]
[1745801213812,7.28815788,147.39,147.31,7.28815788]
[1745801214012,7.28815788,147.37,147.3,4.0867]
[1745801214215,6.7842,147.36,147.3,4.0867]
[1745801214919,6.7846,147.35,147.3,4.0867]
[1745801215118,6.7846,147.35,147.31,6.7859]
[1745801216219,6.7846,147.35,147.32,6.7857]
[1745801218225,6.7841,147.36,147.32,6.7857]
[1745801220022,6.7844,147.35,147.32,6.7857]
[1745801220220,7.28815788,147.37,147.29,31.415]
[1745801220618,6.785,147.34,147.29,31.415]
[1745801221123,6.785,147.34,147.29,2.035]
[1745801221316,6.785,147.34,147.31,6.7859]
[1745801221721,14.07265788,147.35,147.31,6.7859]
[1745801222021,14.07265788,147.35,147.32,6.7856]
[1745801222231,14.07165788,147.37,147.29,9.32315788]
[1745801222623,7.28815788,147.37,147.33,6.785]
[1745801223123,7.28815788,147.37,147.29,2.035]
[1745801223327,7.28815788,147.35,147.29,2.035]
[1745801223728,7.28815788,147.35,147.3,6.7864]
[1745801224128,7.28815788,147.33,147.29,2.035]
[1745801224525,29.32,147.34,147.29,2.035]
[1745801224731,29.32,147.34,147.32,6.7856]
[1745801225026,29.32,147.38,147.3,7.28815788]
[1745801225223,6.7837,147.37,147.34,6.7846]
[1745801226240,36.1031,147.38,147.34,6.7846]
[1745801226537,29.32,147.38,147.34,6.7846]
[1745801226838,6.7838,147.37,147.33,6.7851]
[1745801227038,6.7838,147.37,147.3,40.65685788]
[1745801227238,29.32,147.38,147.3,40.65685788]
[1745801227531,36.103,147.38,147.34,6.7845]
[1745801227740,29.32,147.41,147.34,7.28815788]
[1745801227938,6.7824,147.4,147.36,6.7836]
[1745801228236,36.60815788,147.41,147.32,7.28815788]
[1745801228433,6.783,147.38,147.35,6.7843]
[1745801228739,7.28815788,147.39,147.3,40.65685788]
[1745801229632,6.7842,147.36,147.32,6.7853]
[1745801229939,6.7842,147.36,147.3,40.65685788]
[1745801230130,29.32,147.37,147.3,40.65685788]
[1745801230637,36.1036,147.37,147.3,40.65685788]
[1745801231241,36.1036,147.37,147.33,6.785]
[1745801231540,6.784,147.36,147.33,6.785]
[1745801232036,6.7858,147.32,147.29,2.035]
[1745801232341,36.60815788,147.33,147.24,40.67415788]
[1745801232536,36.60815788,147.33,147.24,42.80345788]
[1745801232938,36.60815788,147.33,147.27,6.788]
[1745801233137,43.39345788,147.33,147.24,42.80345788]
[1745801233342,29.32,147.33,147.26,7.28815788]
[1745801233534,29.32,147.33,147.29,4.69488018]
[1745801233741,4.69488018,147.32,147.24,35.5153]
[1745801233941,4.69488018,147.32,147.28,4.69488018]
[1745801234143,4.69488018,147.32,147.29,6.7868]
[1745801235545,36.1053,147.33,147.29,6.7868]
[1745801236343,29.32,147.33,147.27,7.3374245]
[1745801236736,29.24,147.36,147.29,7.3374245]
[1745801236941,1.5017,147.4,147.24,35.5153]
[1745801236942,29.24,147.39,147.31,7.3374245]
[1745801237240,29.24,147.39,147.33,7.3374245]
[1745801237442,29.24,147.39,147.35,6.784]
[1745801237643,36.0228,147.39,147.35,6.784]
[1745801238150,6.783,147.38,147.35,6.784]
[1745801238341,29.24,147.39,147.33,6.7852]
[1745801238542,7.3374245,147.38,147.31,4.0472]
[1745801238747,29.24,147.39,147.31,11.3846245]
[1745801238950,29.24,147.39,147.35,6.7841]
[1745801239247,36.0229,147.39,147.35,6.7841]
[1745801239851,6.7831,147.38,147.34,6.7846]
[1745801240349,7.3374245,147.38,147.32,6.7856]
[1745801241348,6.7842,147.36,147.33,6.7852]
[1745801241548,6.7842,147.36,147.31,2.0413]
[1745801241848,6.7842,147.36,147.32,6.7853]
[1745801242350,6.7844,147.35,147.32,6.7853]
[1745801242650,7.3374245,147.38,147.31,2.0413]
[1745801242850,6.7842,147.36,147.31,2.0413]
[1745801243149,6.7842,147.36,147.32,6.7853]
[1745801243550,7.3374245,147.36,147.3,2.1065]
[1745801243748,7.3374245,147.36,147.27,7.3374245]